fUST/lending_fUST_20250827
["ID","MTS","AMOUNT","RATE_DAILY","PERIOD"]
[381596698,1756293042082,-480.0,0.00021917,2]
[381596700,1756293042091,-480.0,0.00021917,2]
[381596702,1756293042100,-480.0,0.00021917,2]
[381596704,1756293042109,-500.0,0.00021917,2]
[381596706,1756293042118,-480.0,0.00021917,2]
[381596708,1756293042128,-480.0,0.00021917,2]
[381596710,1756293042137,-480.0,0.00021917,2]
[381596712,1756293042147,-480.0,0.00021917,2]
[381596714,1756293042157,-480.0,0.00021917,2]
[381596716,1756293042167,-480.0,0.00021917,2]
[381596718,1756293042177,-461.70192275,0.00021917,2]
[381596720,1756293042186,-480.0,0.00021917,2]
[381596721,1756293042196,-480.0,0.00021917,2]
[381596722,1756293042205,-480.0,0.00021917,2]
[381596723,1756293042215,-480.0,0.00021917,2]
[381596724,1756293042225,-480.0,0.00021917,2]
[381596725,1756293042234,-480.0,0.00021917,2]
[381596726,1756293042244,-509.13,0.00021917,2]
[381596727,1756293042253,-480.0,0.00021917,2]
[381596728,1756293042263,-480.0,0.00021917,2]
[381596729,1756293042272,-480.0,0.00021917,2]
[381596730,1756293042282,-480.0,0.00021917,2]
[381596731,1756293042291,-480.0,0.00021917,2]
[381596732,1756293042301,-1278.29,0.00021917,2]
[381596733,1756293042310,-480.0,0.00021917,2]
[381596734,1756293042319,-480.0,0.00021917,2]
[381596735,1756293042329,-480.0,0.00021917,2]
[381596736,1756293042338,-710.88,0.00021917,2]
[381596737,1756293042348,-480.0,0.00021917,2]
[381596738,1756293042358,-480.0,0.00021917,2]
[381596739,1756293042368,-480.0,0.00021917,2]
[381596740,1756293042377,-389.38586396,0.00021917,2]
[381596741,1756293042387,-3151.23055035,0.00021917,2]
[381596865,1756293043577,-63.82278866,0.00021917,2]
[381597027,1756293056052,1455.80350225,0.000199,2]
[381597035,1756293233653,1427.02654527,0.000199,2]
[381597036,1756293407436,1386.22352668,0.000199,2]
[381597038,1756293584251,637.49446361,0.000199,2]
[381597039,1756293584276,709.15153054,0.000199,2]
[381597040,1756293642022,-300.46173176,0.00020119,2]
[381597041,1756293644094,489.867265,0.00013699,2]
[381597043,1756293649592,-10.69464424,0.00020119,2]
[381597044,1756293649615,-249.59648611,0.00020119,2]
[381597045,1756293652605,-358.41478677,0.00020119,2]
[381597046,1756293656049,-274.04530874,0.00020119,2]
[381597047,1756293658550,-280.96338507,0.00020119,2]
[381597048,1756293660988,1193.21295762,0.0002001,2]
[381597049,1756293661781,-80.36091181,0.00020119,2]
[381597050,1756293661806,-97.12708082,0.00020187,2]
[381597051,1756293664027,-167.88747449,0.00020187,2]
[381597052,1756293666089,-201.48661493,0.00020187,2]
[381597053,1756293668256,-23.36609476,0.00020187,2]
[381597060,1756293744401,-158.67845406,0.00020174,2]
[381597061,1756293745898,-444.31520646,0.00020174,2]
[381597062,1756293749622,-231.89342119,0.00020174,2]
[381597063,1756293751149,-159.02996361,0.00020174,2]
[381597064,1756293756372,-6.08295468,0.00020174,2]
[381597067,1756293763368,1301.75779449,0.000199,2]
[381597069,1756293788793,-166.26919927,0.00020201,2]
[381597070,1756293792096,-158.5635418,0.00020201,2]
[381597071,1756293793697,-168.51794038,0.00020201,2]
[381597072,1756293796397,-193.76885521,0.00020201,2]
[381597081,1756293865621,2674.94500378,0.0002001,2]
[381597103,1756293940913,1266.52488874,0.000199,2]
[381597110,1756294013092,-184.72771471,0.00020199,2]
[381597112,1756294026558,-164.86781774,0.00020119,2]
[381597113,1756294029133,-27.05947399,0.00020119,2]
[381597114,1756294029155,-128.18044855,0.00020119,2]
[381597122,1756294087696,-362677.91972105,0.00031233,20]
[381597123,1756294087737,-791.07086293,0.00031233,32]
[381597124,1756294087776,-152.32685095,0.00031233,7]
[381597125,1756294087813,-5981.28484202,0.00031233,7]
[381597126,1756294087852,-54428.86157479,0.00031233,30]
[381597128,1756294087891,-250.0,0.00031233,10]
[381597129,1756294087928,-378.20258,0.00031233,10]
[381597130,1756294090263,371.24306666,0.00019595,2]
[381597131,1756294103283,-215.75,0.00021253,10]
[381597132,1756294103588,-151.0,0.00021973,7]
[381597133,1756294103626,-94718.2,0.00022,7]
[381597134,1756294103664,-6463.6,0.00022,7]
[381597135,1756294103700,-151.0,0.00022,7]
[381597136,1756294103738,-151.0,0.00022,7]
[381597137,1756294103783,-151.0,0.00022,7]
[381597138,1756294103825,-151.0,0.00022,7]
[381597139,1756294103863,-151.0,0.00022,7]
[381597140,1756294103900,-210.0333,0.00022,7]
[381597141,1756294103939,-151.0,0.00022,7]
[381597142,1756294103974,-152.562615,0.00022,7]
[381597143,1756294104013,-151.0,0.00022,7]
[381597144,1756294104048,-152.238501,0.00022,7]
[381597145,1756294104083,-151.0,0.00022,7]
[381597146,1756294104118,-151.0,0.00022,7]
[381597147,1756294104154,-151.0,0.00022,7]
[381597148,1756294104192,-151.0,0.00022,7]
[381597149,1756294104230,-151.0,0.00022,7]
[381597150,1756294104267,-151.0,0.00022,7]
[381597151,1756294104304,-151.0,0.00022,7]
[381597152,1756294104341,-151.0,0.00022,7]
[381597153,1756294104377,-151.0,0.00022,7]
[381597154,1756294104414,-288.033239,0.00022,7]
[381597155,1756294104453,-151.0,0.00022,7]
[381597156,1756294104490,-151.0,0.00022,7]
[381597157,1756294104525,-151.0,0.00022,7]
[381597158,1756294104559,-151.0,0.00022,7]
[381597159,1756294104593,-151.0,0.00022,7]
[381597160,1756294104628,-460.744149,0.00022,7]
[381597161,1756294104661,-460.744149,0.00022,7]
[381597162,1756294104695,-460.744149,0.00022,7]
[381597163,1756294104730,-460.744149,0.00022,7]
[381597164,1756294104765,-151.0,0.00022,7]
[381597165,1756294104801,-199.313808,0.00022,7]
[381597166,1756294104835,-199.313808,0.00022,7]
[381597167,1756294104868,-199.313808,0.00022,7]
[381597168,1756294104901,-199.313808,0.00022,7]
[381597169,1756294104937,-216.14835892,0.00022,7]
[381597170,1756294104972,-151.0,0.00022,7]
[381597171,1756294105013,-151.0,0.00022,7]
[381597172,1756294105048,-221.752999,0.00022,7]
[381597173,1756294105082,-221.752999,0.00022,7]
[381597175,1756294105120,-221.752999,0.00022,7]
[381597176,1756294105153,-221.752999,0.00022,7]
[381597177,1756294105185,-151.0,0.00022,7]
[381597178,1756294105219,-12707.75045307,0.00022,7]
[381597179,1756294105255,-151.0,0.00022,7]
[381597180,1756294105292,-151.0,0.00022,7]
[381597181,1756294105331,-529.56067766,0.00022,7]
[381597182,1756294105369,-413.986588,0.00022,7]
[381597183,1756294105406,-413.986588,0.00022,7]
[381597184,1756294105442,-154.161836,0.00022,7]
[381597185,1756294105476,-618.07867,0.00022,7]
[381597186,1756294105510,-154.161836,0.00022,7]
[381597187,1756294105544,-618.07867,0.00022,7]
[381597188,1756294105577,-154.161836,0.00022,7]
[381597189,1756294105610,-618.07867,0.00022,7]
[381597190,1756294105644,-413.986588,0.00022,7]
[381597191,1756294105678,-154.161836,0.00022,7]
[381597192,1756294105713,-413.986588,0.00022,7]
[381597193,1756294105748,-618.07867,0.00022,7]
[381597194,1756294105781,-151.0,0.00022,7]
[381597195,1756294105814,-151.0,0.00022,7]
[381597196,1756294105847,-151.0,0.00022,7]
[381597197,1756294105882,-151.0,0.00022,7]
[381597198,1756294105917,-151.0,0.00022,7]
[381597199,1756294105954,-256.636149,0.00022,7]
[381597200,1756294105994,-151.0,0.00022,7]
[381597201,1756294106029,-256.636149,0.00022,7]
[381597202,1756294106065,-151.0,0.00022,7]
[381597203,1756294106104,-256.636149,0.00022,7]
[381597204,1756294106140,-151.0,0.00022,7]
[381597205,1756294106177,-256.636149,0.00022,7]
[381597206,1756294106212,-151.0,0.00022,7]
[381597207,1756294106247,-151.0,0.00022,7]
[381597208,1756294106282,-245.326252,0.00022,7]
[381597209,1756294106318,-239.874539,0.00022,7]
[381597210,1756294106353,-239.874539,0.00022,7]
[381597211,1756294106386,-239.874539,0.00022,7]
[381597212,1756294106419,-239.874539,0.00022,7]
[381597213,1756294106452,-151.0,0.00022,7]
[381597214,1756294106489,-425.44119842,0.00022,7]
[381597215,1756294106522,-151.0,0.00022,7]
[381597216,1756294106555,-155.475497,0.00022,7]
[381597217,1756294106587,-151.0,0.00022,7]
[381597218,1756294106618,-151.0,0.00022,7]
[381597219,1756294106649,-151.0,0.00022,7]
[381597220,1756294106681,-151.0,0.00022,7]
[381597221,1756294106713,-151.0,0.00022,7]
[381597222,1756294106744,-151.0,0.00022,7]
[381597223,1756294106776,-151.0,0.00022,7]
[381597224,1756294106807,-151.0,0.00022,7]
[381597225,1756294106839,-151.0,0.00022,7]
[381597226,1756294106869,-151.0,0.00022,7]
[381597227,1756294106899,-174.609726,0.00022,7]
[381597228,1756294106932,-151.0,0.00022,7]
[381597229,1756294106965,-174.609726,0.00022,7]
[381597230,1756294107000,-174.609726,0.00022,7]
[381597231,1756294107035,-151.0,0.00022,7]
[381597232,1756294107068,-174.609726,0.00022,7]
[381597233,1756294107100,-151.0,0.00022,7]
[381597234,1756294107133,-151.0,0.00022,7]
[381597235,1756294107168,-151.0,0.00022,7]
[381597236,1756294107367,-151.0,0.00022,7]
[381597237,1756294107404,-151.0,0.00022,7]
[381597238,1756294107441,-151.0,0.00022,7]
[381597239,1756294107478,-417.15472785,0.00022,7]
[381597240,1756294107518,-151.0,0.000221,9]
[381597241,1756294107553,-151.0,0.000221,7]
[381597242,1756294107587,-151.0,0.00022185,7]
[381597243,1756294107620,-151.0,0.00022185,7]
[381597244,1756294107653,-151.0,0.00022185,7]
[381597245,1756294107686,-151.0,0.00022185,7]
[381597246,1756294107718,-151.0,0.00022185,7]
[381597247,1756294107750,-160.492383,0.00022185,7]
[381597248,1756294107782,-239.48907,0.00022185,7]
[381597249,1756294107813,-151.0,0.00022185,7]
[381597250,1756294107845,-151.0,0.00022185,7]
[381597251,1756294107876,-151.0,0.00022185,7]
[381597252,1756294107908,-151.0,0.00022185,7]
[381597253,1756294107941,-151.0,0.00022185,7]
[381597254,1756294107973,-151.0,0.00022185,7]
[381597255,1756294108006,-151.0,0.00022185,7]
[381597256,1756294108036,-151.0,0.00022185,7]
[381597257,1756294108066,-192.230658,0.00022185,7]
[381597258,1756294108099,-151.0,0.00022185,7]
[381597259,1756294108132,-151.0,0.00022185,7]
[381597260,1756294108167,-460.744149,0.00022185,7]
[381597261,1756294108202,-460.744149,0.00022185,7]
[381597262,1756294108234,-460.744149,0.00022185,7]
[381597263,1756294108270,-460.744149,0.00022185,7]
[381597264,1756294108305,-207.08738,0.00022185,7]
[381597265,1756294108341,-199.313808,0.00022185,7]
[381597266,1756294108378,-199.313808,0.00022185,7]
[381597267,1756294108413,-199.313808,0.00022185,7]
[381597268,1756294108448,-199.313808,0.00022185,7]
[381597269,1756294108484,-151.0,0.00022185,7]
[381597270,1756294108520,-295.158862,0.00022185,7]
[381597271,1756294108555,-221.752999,0.00022185,7]
[381597272,1756294108587,-221.752999,0.00022185,7]
[381597273,1756294108618,-221.752999,0.00022185,7]
[381597274,1756294108651,-221.752999,0.00022185,7]
[381597275,1756294108682,-151.0,0.00022185,7]
[381597276,1756294108715,-207.521023,0.00022185,7]
[381597277,1756294108747,-413.986588,0.00022185,7]
[381597278,1756294108779,-413.986588,0.00022185,7]
[381597279,1756294108812,-154.161836,0.00022185,7]
[381597280,1756294108845,-618.07867,0.00022185,7]
[381597281,1756294108876,-154.161836,0.00022185,7]
[381597282,1756294108908,-618.07867,0.00022185,7]
[381597283,1756294108940,-154.161836,0.00022185,7]
[381597284,1756294108972,-413.986588,0.00022185,7]
[381597285,1756294109005,-618.07867,0.00022185,7]
[381597286,1756294109037,-154.161836,0.00022185,7]
[381597287,1756294109070,-413.986588,0.00022185,7]
[381597288,1756294109102,-618.07867,0.00022185,7]
[381597289,1756294109134,-154.293276,0.00022185,7]
[381597290,1756294109166,-151.0,0.00022185,7]
[381597291,1756294109198,-151.0,0.00022185,7]
[381597292,1756294109232,-151.0,0.00022185,7]
[381597293,1756294109266,-151.0,0.00022185,7]
[381597294,1756294109301,-256.636149,0.00022185,7]
[381597295,1756294109336,-151.0,0.00022185,7]
[381597296,1756294109369,-256.636149,0.00022185,7]
[381597297,1756294109404,-151.0,0.00022185,7]
[381597298,1756294109439,-256.636149,0.00022185,7]
[381597299,1756294109476,-151.0,0.00022185,7]
[381597300,1756294109512,-256.636149,0.00022185,7]
[381597301,1756294109547,-151.0,0.00022185,7]
[381597302,1756294109581,-151.0,0.00022185,7]
[381597303,1756294109617,-239.874539,0.00022185,7]
[381597304,1756294109653,-239.874539,0.00022185,7]
[381597305,1756294109687,-239.874539,0.00022185,7]
[381597306,1756294109721,-239.874539,0.00022185,7]
[381597307,1756294109754,-151.0,0.00022185,7]
[381597308,1756294109787,-282.238328,0.00022185,7]
[381597309,1756294109818,-152.82516,0.00022185,7]
[381597310,1756294109850,-151.0,0.00022185,7]
[381597311,1756294109884,-300.915674,0.00022185,7]
[381597312,1756294109920,-151.0,0.00022185,7]
[381597313,1756294109957,-151.0,0.00022185,7]
[381597314,1756294109996,-151.0,0.00022185,7]
[381597315,1756294110031,-151.0,0.00022185,7]
[381597316,1756294110064,-174.609726,0.00022185,7]
[381597317,1756294110097,-151.0,0.00022185,7]
[381597318,1756294110130,-174.609726,0.00022185,7]
[381597319,1756294110164,-174.609726,0.00022185,7]
[381597320,1756294110197,-151.0,0.00022185,7]
[381597321,1756294110230,-174.609726,0.00022185,7]
[381597322,1756294110261,-151.0,0.00022185,7]
[381597323,1756294110294,-151.0,0.00022185,7]
[381597324,1756294110328,-151.0,0.00022185,7]
[381597325,1756294110363,-297.623095,0.00022185,7]
[381597326,1756294110398,-151.0,0.00022185,7]
[381597327,1756294110432,-176.90508,0.00022191,7]
[381597328,1756294110464,-151.0,0.00022191,7]
[381597329,1756294110496,-151.0,0.00022191,7]
[381597330,1756294110529,-151.0,0.00022191,7]
[381597331,1756294110564,-151.0,0.00022191,7]
[381597332,1756294110609,-151.0,0.00022191,7]
[381597333,1756294110646,-151.0,0.00022191,7]
[381597334,1756294110680,-151.0,0.00022191,7]
[381597335,1756294110714,-151.0,0.00022191,7]
[381597336,1756294110756,-151.0,0.00022191,7]
[381597337,1756294110791,-151.0,0.00022191,7]
[381597338,1756294110825,-151.0,0.00022191,7]
[381597339,1756294111022,-151.0,0.00022191,7]
[381597340,1756294111059,-151.0,0.00022191,7]
[381597341,1756294111096,-151.0,0.00022191,7]
[381597342,1756294111133,-151.0,0.00022191,7]
[381597343,1756294111173,-151.0,0.00022191,7]
[381597344,1756294111211,-235.671574,0.00022191,7]
[381597345,1756294111249,-460.744149,0.00022191,7]
[381597346,1756294111289,-460.744149,0.00022191,7]
[381597347,1756294111329,-460.744149,0.00022191,7]
[381597348,1756294111368,-460.744154,0.00022191,7]
[381597349,1756294111407,-199.313808,0.00022191,7]
[381597350,1756294111441,-199.313808,0.00022191,7]
[381597351,1756294111476,-199.313808,0.00022191,7]
[381597352,1756294111512,-199.313811,0.00022191,7]
[381597353,1756294111548,-151.0,0.00022191,7]
[381597354,1756294111584,-221.752999,0.00022191,7]
[381597355,1756294111617,-221.752999,0.00022191,7]
[381597356,1756294111651,-221.752999,0.00022191,7]
[381597357,1756294111683,-221.752995,0.00022191,7]
[381597358,1756294111716,-151.0,0.00022191,7]
[381597359,1756294111751,-413.986588,0.00022191,7]
[381597360,1756294111783,-413.986588,0.00022191,7]
[381597361,1756294111817,-154.161836,0.00022191,7]
[381597362,1756294111850,-618.07867,0.00022191,7]
[381597363,1756294111883,-154.161836,0.00022191,7]
[381597364,1756294111920,-618.07867,0.00022191,7]
[381597365,1756294111960,-154.161836,0.00022191,7]
[381597366,1756294111997,-413.986588,0.00022191,7]
[381597367,1756294112032,-618.07867,0.00022191,7]
[381597368,1756294112067,-154.161841,0.00022191,7]
[381597369,1756294112101,-413.986588,0.00022191,7]
[381597370,1756294112137,-618.07867462,0.00022191,7]
[381597371,1756294112173,-151.0,0.00022191,7]
[381597372,1756294112207,-151.0,0.00022191,7]
[381597373,1756294112242,-151.0,0.00022191,7]
[381597374,1756294112277,-151.0,0.00022191,7]
[381597375,1756294112314,-256.636149,0.00022191,7]
[381597376,1756294112351,-151.0,0.00022191,7]
[381597377,1756294112385,-256.636149,0.00022191,7]
[381597378,1756294112420,-151.0,0.00022191,7]
[381597379,1756294112456,-256.636149,0.00022191,7]
[381597380,1756294112493,-151.0,0.00022191,7]
[381597381,1756294112529,-256.636153,0.00022191,7]
[381597382,1756294112565,-151.0,0.00022191,7]
[381597383,1756294112600,-239.874539,0.00022191,7]
[381597384,1756294112634,-239.874539,0.00022191,7]
[381597385,1756294112666,-239.874539,0.00022191,7]
[381597386,1756294112698,-239.874545,0.00022191,7]
[381597387,1756294112731,-151.0,0.00022191,7]
[381597388,1756294112767,-151.0,0.00022191,7]
[381597389,1756294112803,-151.0,0.00022191,7]
[381597390,1756294112837,-151.0,0.00022191,7]
[381597391,1756294112870,-234.778612,0.00022191,7]
[381597392,1756294112904,-174.609726,0.00022191,7]
[381597393,1756294112938,-151.0,0.00022191,7]
[381597394,1756294112972,-174.609726,0.00022191,7]
[381597395,1756294113006,-174.609726,0.00022191,7]
[381597396,1756294113048,-174.609724,0.00022191,7]
[381597397,1756294113089,-151.0,0.00022191,7]
[381597398,1756294113126,-151.0,0.00022191,7]
[381597399,1756294113164,-151.0,0.00022191,7]
[381597400,1756294113200,-151.0,0.00022191,7]
[381597401,1756294113240,-151.0,0.00022191,7]
[381597402,1756294113279,-414.0,0.00022192,7]
[381597403,1756294113317,-169.17109336,0.000222,69]
[381597404,1756294113360,-300.0,0.00022344,20]
[381597405,1756294113400,-300.0,0.00022344,20]
[381597406,1756294113461,-189.037966,0.00022465,28]
[381597407,1756294113509,-300.0,0.00022524,20]
[381597408,1756294113553,-600.0,0.00022537,20]
[381597409,1756294113635,-414.0,0.00023014,7]
[381597410,1756294113670,-169.0,0.00023014,7]
[381597411,1756294113727,-151.0,0.00023288,7]
[381597412,1756294113766,-4800.0,0.000234,10]
[381597413,1756294113801,-94718.2,0.000234,7]
[381597414,1756294113836,-6463.6,0.000234,7]
[381597415,1756294113910,-845.298898,0.00024,7]
[381597416,1756294113948,-160.0,0.00024,7]
[381597417,1756294113986,-160.0,0.00024,7]
[381597418,1756294114026,-160.0,0.00024,7]
[381597419,1756294114061,-160.0,0.00024,7]
[381597420,1756294114096,-160.0,0.00024,7]
[381597421,1756294114133,-160.0,0.00024,7]
[381597422,1756294114170,-232.59867797,0.00024,7]
[381597423,1756294114207,-217.23771399,0.00024,7]
[381597424,1756294114262,-415.0,0.00024164,7]
[381597425,1756294114297,-50000.0,0.000242,7]
[381597426,1756294114366,-500.0,0.00024787,9]
[381597427,1756294114407,-720.0,0.00024791,20]
[381597428,1756294114446,-94718.2,0.000248,7]
[381597429,1756294114485,-6463.6,0.000248,7]
[381597430,1756294114537,-350.07480875,0.00025,7]
[381597431,1756294114576,-50000.0,0.000252,7]
[381597432,1756294114832,-414.0,0.00025775,7]
[381597433,1756294114889,-50000.0,0.000262,7]
[381597434,1756294114931,-94718.2,0.000262,7]
[381597435,1756294114971,-6463.6,0.000262,7]
[381597436,1756294115044,-400.0,0.00027,14]
[381597437,1756294115093,-50000.0,0.000272,7]
[381597438,1756294115136,-864.0,0.0002727,20]
[381597439,1756294115175,-169.17109335,0.00027297,91]
[381597440,1756294115214,-414.0,0.00027386,7]
[381597441,1756294115263,-7557.12,0.000274,7]
[381597442,1756294115303,-94718.2,0.000276,7]
[381597443,1756294115342,-6463.6,0.000276,7]
[381597444,1756294115382,-232.758774,0.000276,7]
[381597445,1756294115418,-414.0,0.00027616,14]
[381597446,1756294115464,-300.0,0.00027778,10]
[381597447,1756294115503,-232.758774,0.00027912,7]
[381597448,1756294115547,-265.0,0.00028,120]
[381597449,1756294115582,-367.83889168,0.00028,120]
[381597450,1756294115617,-50000.0,0.000282,7]
[381597451,1756294115659,-232.758774,0.00028225,7]
[381597452,1756294115695,-1007.37147542,0.00028233,7]
[381597453,1756294115730,-7557.12,0.000283,7]
[381597454,1756294115769,-1266.52488871,0.00028533,10]
[381597455,1756294115805,-232.758774,0.00028538,7]
[381597456,1756294115841,-573.39,0.00028545,15]
[381597457,1756294115882,-573.39,0.00028645,15]
[381597458,1756294115917,-160.32,0.00028733,15]
[381597459,1756294115952,-166.72,0.00028733,15]
[381597460,1756294115990,-573.39,0.00028745,15]
[381597461,1756294116031,-160.33580363,0.00028769,15]
[381597462,1756294116064,-168.1641378,0.000288,7]
[381597463,1756294116101,-160.32,0.00028833,15]
[381597464,1756294116136,-166.72180674,0.00028833,15]
[381597465,1756294116174,-573.39,0.00028845,15]
[381597466,1756294116210,-232.758774,0.0002885,7]
[381597467,1756294116245,-160.32,0.00028933,15]
[381597468,1756294116283,-573.39,0.00028945,15]
[381597469,1756294116320,-414.0,0.00028997,14]
[381597470,1756294116357,-94718.2,0.00029,7]
[381597471,1756294116392,-6463.6,0.00029,7]
[381597472,1756294116427,-32322.38229006,0.00029007,120]
[381597474,1756294122718,1993.30749317,0.0002,2]
[381597475,1756294122740,10000.01,0.0002,2]
[381597476,1756294122761,6983.10545442,0.0002,2]
[381597481,1756294151468,3016.90454558,0.00019201,2]
[381597482,1756294151490,10000.01,0.00019201,2]
[381597483,1756294151512,7278.59149402,0.00019201,2]
[381597485,1756294162399,2721.41850598,0.0002001,2]
[381597486,1756294162424,2278.58149402,0.0002001,2]
[381597487,1756294172180,5000.0,0.0002001,2]
[381597490,1756294180819,2721.42850598,0.0002001,2]
[381597491,1756294180846,2278.57149402,0.0002001,2]
[381597492,1756294191152,1437.61238891,0.0002001,2]
[381597496,1756294200087,5000.0,0.0002001,2]
[381597499,1756294218637,1283.82611707,0.0002001,2]
[381597500,1756294218662,3716.17388293,0.0002001,2]
[381597502,1756294229863,372.93424948,0.00019938,2]
[381597504,1756294231990,1491.7369979,0.00019938,2]
[381597512,1756294232396,-209.89621954,0.00020099,2]
[381597514,1756294232406,-638.76100919,0.00020119,2]
[381597516,1756294232416,-351.34277127,0.00020199,2]
[381597623,1756294234174,3353.05183704,0.00019938,2]
[381597646,1756294235588,1066.11303265,0.0002001,2]
[381597647,1756294235616,3933.88696735,0.0002001,2]
[381597694,1756294238365,-848.65722873,0.00020199,2]
[381597696,1756294238375,-300.0,0.00020199,2]
[381597699,1756294238386,-300.0,0.00020199,2]
[381597701,1756294238396,-160.0,0.00020199,2]
[381597703,1756294238406,-1200.0,0.00020199,2]
[381597705,1756294238417,-500.0,0.000202,2]
[381597707,1756294238428,-500.0,0.000202,2]
[381597709,1756294238438,-500.0,0.000202,2]
[381597711,1756294238449,-500.0,0.000202,2]
[381597713,1756294238459,-500.0,0.000202,2]
[381597715,1756294238470,-500.0,0.000202,2]
[381597718,1756294238480,-343.09745573,0.000202,2]
[381597720,1756294238491,-500.0,0.000202,2]
[381597722,1756294238501,-500.0,0.000202,2]
[381597724,1756294238511,-500.0,0.000202,2]
[381597726,1756294238521,-500.0,0.000202,2]
[381597728,1756294238533,-500.0,0.000202,2]
[381597730,1756294238543,-500.0,0.000202,2]
[381597732,1756294238553,-50000.0,0.00020201,2]
[381597735,1756294238564,-9312.88046334,0.00020201,2]
[381597737,1756294238574,-248.950698,0.00020201,2]
[381597739,1756294238585,-355.9289995,0.00020246,2]
[381597741,1756294238595,-494.761455,0.00020527,2]
[381597743,1756294238605,-500.0,0.000206,2]
[381597745,1756294238616,-300.0,0.00020603,20]
[381597747,1756294238635,-600.0,0.00020604,20]
[381597749,1756294238645,-500.0,0.000208,2]
[381597752,1756294238655,-500.0,0.000208,2]
[381597754,1756294238666,-500.0,0.000208,2]
[381597756,1756294238676,-500.85200101,0.000208,2]
[381597758,1756294238687,-500.0,0.000208,2]
[381597760,1756294238699,-500.0,0.000208,2]
[381597762,1756294238709,-500.0,0.000208,2]
[381597764,1756294238721,-500.0,0.000208,2]
[381597766,1756294238732,-500.0,0.000208,2]
[381597768,1756294238742,-153.0,0.00021096,2]
[381597770,1756294238753,-1000.0,0.00021148,2]
[381597772,1756294238763,-179.79,0.00021253,10]
[381597775,1756294238774,-898.96,0.00021253,10]
[381597777,1756294238785,-41601.4938026,0.00021263,2]
[381597779,1756294238796,-500.0,0.000213,2]
[381597781,1756294238805,-500.0,0.000213,2]
[381597783,1756294238816,-500.0,0.000213,2]
[381597785,1756294238827,-506.73658747,0.000213,2]
[381597787,1756294238837,-500.0,0.000213,2]
[381597789,1756294238848,-511.85173203,0.000213,2]
[381597791,1756294238858,-500.0,0.000213,2]
[381597793,1756294238869,-500.0,0.000213,2]
[381597795,1756294238878,-500.0,0.000213,2]
[381597797,1756294238889,-500.0,0.000213,2]
[381597800,1756294238901,-634.31777391,0.000213,2]
[381597802,1756294238912,-422.31303599,0.000213,2]
[381597804,1756294238922,-500.0,0.000213,2]
[381597806,1756294238933,-394.33363111,0.000213,2]
[381597808,1756294238944,-500.0,0.000213,2]
[381597810,1756294238955,-500.0,0.000213,2]
[381597812,1756294238966,-1014.09166701,0.00021348,2]
[381597814,1756294238976,-1000.0,0.00021348,2]
[381597816,1756294238986,-1000.0,0.00021348,2]
[381597819,1756294238996,-1000.0,0.00021348,2]